Cogmind - Beta 17 @@@ ROGUE MODE // 2026.07.10 @ 15:09:47 Player: beans Result: Destroyed by H-55 Commando with Gauss Rifle Performance ------------- Evolutions (0) 0 Regions Visited (3) 600 Robots Destroyed (12) 60 Value Destroyed (373) 373 Prototype IDs (23) 460 Alien Tech Used (0) 0 Bonus (269) 269 TOTAL SCORE: 1762 Bonus ------- Aligned with FarCom 300 Friendly Fire -31 Cogmind --------- Core Integrity 0/250 Matter 244/300 Energy 60/100 System Corruption 2% Temperature Cool (35) Movement Core (200) Ox3 Location -10/Exiles Parts ------- > --- POWER (1) -------- (None) > --- PROPULSION (2) --- (None) > --- UTILITY (2) ------ 0b10 Alert Chip > --- WEAPON (2) ------- Guided Plasma Cannon > --- INVENTORY (5) ---- Supersonic Drone Bay (1/1) Light Assault Rifle Light Assault Rifle Light Assault Rifle Peak State ------------ > --- POWER ------------ Light Nuclear Core > --- PROPULSION ------- Light Treads Light Treads > --- UTILITY ---------- Improved Heat Sink 0b10 Alert Chip > --- WEAPON ----------- Guided Plasma Cannon Assault Rifle > --- INVENTORY -------- Supersonic Drone Bay Light Assault Rifle Light Assault Rifle Light Assault Rifle [Rating: 24] Favorites ----------- Power Light Nuclear Core Engine Light Ion Engine Power Core Light Nuclear Core Propulsion Light Treads Treads Light Treads Utility Improved Heat Sink Device Improved Heat Sink Processor 0b10 Alert Chip Weapon Assault Rifle Energy Cannon Guided Plasma Cannon Ballistic Gun Assault Rifle Build | -11 -10 -10 -10 ------- Run | Yrd Mat Min Exi Slots Evolved . | . . . . Power . | . . . . Propulsion . | . . . . Utility . | . . . . Weapon . | . . . . Parts Attached 9 | 5 . 2 2 Power 2 | 1 . 1 . Engine 1 | 1 . . . Core 1 | . . 1 . Reactor . | . . . . Propulsion 2 | 2 . . . Treads 2 | 2 . . . Leg . | . . . . Wheel . | . . . . Hover . | . . . . Flight . | . . . . Utility 2 | . . 1 1 Device 1 | . . 1 . Storage . | . . . . Processor 1 | . . . 1 Hackware . | . . . . Protection . | . . . . Artifact . | . . . . Weapon 3 | 2 . . 1 Energy Gun . | . . . . Energy Cannon 1 | . . . 1 Ballistic Gun 2 | 2 . . . Ballistic Cannon . | . . . . Launcher . | . . . . Special Weapon . | . . . . Impact Weapon . | . . . . Slashing Weapon . | . . . . Piercing Weapon . | . . . . Special Melee Weapon . | . . . . Unidentified Prototypes . | . . . . Parts Lost 6 | . 1 . 5 Power 2 | . 1 . 1 Propulsion 2 | . . . 2 Utility 1 | . . . 1 Weapon 1 | . . . 1 Highest Loss Streak 5 | . 1 . 5 To Critical Strikes . | . . . . Average Backups 2 | . 1 2 3 Power . | . . . . Propulsion . | . . . . Utility . | . . . . Weapon 2 | . 1 2 2 Tool/Special . | . . . . Unused Backups 3 | . . . 3 Power . | . . . . Propulsion . | . . . . Utility 1 | . . . 1 Weapon 2 | . . . 2 Tool/Special . | . . . . Average Slot Usage (%) 72 | . 71 74 70 Engine 2 | . 14 . . Core 7 | . . 8 9 Treads 24 | . 28 28 19 Device 7 | . . 8 10 Processor 4 | . . . 8 Energy Cannon 1 | . . . 2 Ballistic Gun 23 | . 28 28 18 Peak Build Rating 24 | 5 5 10 24 Average Rating 9 | 3 4 7 12 On Entrance 4 | . 5 4 10 Avg Prop Armor Cover (%) . | . . . . Naked Turns . | . . . . Heaviest Build 18 | 6 6 9 18 Greatest Support 40 | 40 40 40 40 Greatest Overweight (x) 3 | . . . 3 Average Overweight (x) . | . . . . Largest Inventory Capacity 5 | 5 5 5 5 Average Capacity 5 | 5 5 5 5 Most Carried 5 | 4 2 4 5 Average Carried 2 | . 1 2 3 Final Capacity 5 | 5 5 5 5 Final Carried 4 | . 2 2 4 Class Distribution -------------------- 100% | Mutant Dominant Class ---------------- Mutant | -10/Materials Mutant | -10/Mines Mutant | -10/Exiles Resources | -11 -10 -10 -10 ----------- Run | Yrd Mat Min Exi Matter Collected 421 | 173 126 122 . Remotely . | . . . . Salvage Created 506 | . 196 122 188 Parts 36 | . 16 10 10 Haulers Intercepted . | . . . . Recyclers Shooed 1 | . . 1 . Parts Field Recycled . | . . . . Retrieved Matter . | . . . . Parts Self-Destructed . | . . . . Prevented . | . . . . Parts Restored . | . . . . Kills | -11 -10 -10 -10 ------- Run | Yrd Mat Min Exi Combat Hostiles Destroyed 9 | . 4 2 3 Guns 6 | . 4 2 . Cannons 3 | . . . 3 Classes Destroyed 6 | . 2 2 2 Worker 1 | . . 1 . Builder 1 | . 1 . . Tunneler 1 | . . 1 . Grunt 7 | . 4 2 1 Brawler 1 | . . . 1 Programmer 1 | . . . 1 Best Kill Streak 3 | . 2 3 2 Combat Bots Only 2 | . 2 2 2 Max Kills in Single Turn 1 | . 1 1 1 Gunslinging . | . . . . Exploded . | . . . . Melee . | . . . . Uniques/NPCs Destroyed . | . . . . Combat | -11 -10 -10 -10 -------- Run | Yrd Mat Min Exi Hostile Shots Fired 82 | . 39 14 29 Missed 26 | . 13 4 9 Hits 56 | . 26 10 20 Projectile 56 | . 26 10 20 Critical Strikes 2 | . . . 2 Damage Taken 895 | . 313 141 441 Core 254 | . 62 44 148 Absorbed by Shields . | . . . . Core Remaining (%) 100 | 100 . . . Volleys Fired 61 | . 25 21 15 Largest 2 | . 2 2 1 Hottest 120 | . 40 40 120 Shots Fired 107 | . 50 42 15 Gun 92 | . 50 42 . Cannon 15 | . . . 15 Launcher . | . . . . Special . | . . . . Kinetic 92 | . 50 42 . Thermal 15 | . . . 15 Explosive . | . . . . Electromagnetic . | . . . . Robot Hit Streak 7 | . 7 6 4 Robot Miss Streak 3 | . 3 2 . Penetration Max . | . . . . Secondary Targets 1 | . 1 . . Max Gunslinging Chain 1 | . 1 . . Shots Hit Robots 60 | . 33 23 4 Core Hits 25 | . 10 9 6 Critical Kills . | . . . . Critical Parts Destroyed . | . . . . Critical Strikes . | . . . . Melee Attacks . | . . . . Impact . | . . . . Slashing . | . . . . Piercing . | . . . . Sneak Attacks . | . . . . Combat Hostiles . | . . . . Follow-up Attacks . | . . . . Damage Inflicted 1009 | . 370 217 422 Guns 584 | . 370 214 . Cannons 422 | . . . 422 Explosions . | . . . . Melee . | . . . . Ramming 3 | . . 3 . Kinetic 584 | . 370 214 . Thermal 422 | . . . 422 Explosive . | . . . . Electromagnetic . | . . . . Impact . | . . . . Slashing . | . . . . Piercing . | . . . . Highest Corruption 2 | . . . 2 Average Corruption 1 | . . . 1 Corruption Purged . | . . . . Corruption Blocked . | . . . . Effects 3 | . . . 3 Message Errors 2 | . . . 2 Matter Fused 1 | . . . 1 Overload Shots . | . . . . Overflow Damage . | . . . . Projectiles . | . . . . Explosions . | . . . . Melee . | . . . . Knockbacks . | . . . . Impact . | . . . . Kinetic . | . . . . Secondary . | . . . . Self-Inflicted Damage . | . . . . Shots . | . . . . Rammed 1 | . . 1 . Targets Rammed 1 | . . 1 . Kicked . | . . . . Crushed . | . . . . Highest Temperature 230 | . 21 15 230 Average Temperature 59 | . 8 8 86 Received Heat Transfer 240 | . 156 78 6 Siege Activations . | . . . . Martial Activations . | . . . . Shielding Activations . | . . . . Robots Disrupted . | . . . . Combat Hostiles . | . . . . Robots Corrupted . | . . . . Combat Hostiles . | . . . . Parts Fried . | . . . . Impact Corruptions . | . . . . Robots Melted . | . . . . Combat Hostiles . | . . . . Parts Melted . | . . . . Heat Transferred 780 | . . . 780 Parts Sabotaged . | . . . . Parts Stolen . | . . . . Parts Stripped . | . . . . Power Chain Reactions . | . . . . Alert | -11 -10 -10 -10 ------- Run | Yrd Mat Min Exi Maximum Alert Level . | . . . . Low Security (%) 100 | 100 100 100 . Level 1 . | . . . . Level 2 . | . . . . Level 3 . | . . . . Level 4 . | . . . . Level 5 . | . . . . High Security . | . . . . Max Security . | . . . . Peak Influence 61 | . 61 45 . Initial 13 | . . 13 . Average 10 | . 17 7 . Influence Increases 228 | . 96 60 72 Destroy 0b10 Robot/C 168 | . 80 40 48 Destroy 0b10 Robot/NC 15 | . 5 10 . Destroy Leader 20 | . 10 10 . Destroy Structure 1 | . 1 . . Lose Combat Pursuer 24 | . . . 24 Influence Decreases 228 | . 60 96 72 Entered New Map 23 | . . 23 . Time Decay 175 | . 50 73 52 Lost Part 30 | . 10 . 20 Squads Dispatched 1 | . 1 . . Investigation . | . . . . Extermination . | . . . . Reinforcement 1 | . 1 . . Assault . | . . . . Garrison . | . . . . Intercept . | . . . . Searches Triggered . | . . . . Construction Impeded . | . . . . Haulers Reinforced . | . . . . Active Scanning Responses . | . . . . Cargo Convoy Interrupts . | . . . . Stealth | -11 -10 -10 -10 --------- Run | Yrd Mat Min Exi Distress Signals 1 | . 1 . . Communications Jammed . | . . . . Distress Signals . | . . . . Times Spotted 30 | . 9 2 19 Peak Tracking Total 6 | . 6 2 5 Tactical Retreats 3 | . . . 3 Traps | -11 -10 -10 -10 ------- Run | Yrd Mat Min Exi Traps Triggered . | . . . . Indirectly . | . . . . Trap Hack Attempts . | . . . . Triggered . | . . . . Disarmed . | . . . . Reprogrammed . | . . . . Reused . | . . . . Traps Extracted . | . . . . Installed . | . . . . Triggered . | . . . . Machines | -11 -10 -10 -10 ---------- Run | Yrd Mat Min Exi Machines Disabled . | . . . . Max in Single Turn . | . . . . Machines Repaired . | . . . . Machines Dismantled . | . . . . Machines Sabotaged . | . . . . Overloaded Fab Kills . | . . . . Hacking | -11 -10 -10 -10 --------- Run | Yrd Mat Min Exi Machines Accessed 1 | . . . 1 Terminals . | . . . . Fabricators . | . . . . Repair Stations . | . . . . Recycling Units . | . . . . Scanalyzers . | . . . . Garrison Access . | . . . . Total Hacks 1 | . . . 1 Successful 1 | . . . 1 Failed . | . . . . Catastrophic . | . . . . Database Lockouts . | . . . . Manual 1 | . . . 1 Terminals . | . . . . Fabricators . | . . . . Repair Stations . | . . . . Recycling Units . | . . . . Scanalyzers . | . . . . Garrison Access . | . . . . Terminal Hacks 1 | . . . 1 Proto ID Catalog 1 | . . . 1 Fabricator Hacks . | . . . . Repair Station Hacks . | . . . . Recycling Unit Hacks . | . . . . Scanalyzer . | . . . . Garrison Access Hacks . | . . . . Unauthorized Hacks . | . . . . Terminals . | . . . . Fabricators . | . . . . Repair Stations . | . . . . Recycling Units . | . . . . Scanalyzers . | . . . . Garrison Access . | . . . . Data Cores Recovered . | . . . . Used . | . . . . Hacking Detections . | . . . . Full Trace Events . | . . . . Feedback Events . | . . . . Feedback Blocked . | . . . . Robot Schematics Acquired . | . . . . Robots Built . | . . . . Authchips . | . . . . Time . | . . . . Total Robot Build Rating . | . . . . Part Schematics Acquired . | . . . . Parts Built . | . . . . Authchips . | . . . . Time . | . . . . Total Part Build Rating . | . . . . Part Studies Acquired . | . . . . Parts Repaired . | . . . . Time . | . . . . Parts Recycled . | . . . . Recycled Matter . | . . . . Retrieved Matter . | . . . . Retrieved Components . | . . . . Parts Scanalyzed . | . . . . Part Schematics Acquired . | . . . . Parts Damaged . | . . . . Bothacking | -11 -10 -10 -10 ------------ Run | Yrd Mat Min Exi Used RIF Installer . | . . . . Robots Hacked . | . . . . Non-combat . | . . . . Combat . | . . . . Robot Hacks Applied . | . . . . Relay Couplers Released . | . . . . Fabnet Peak Effective % . | . . . . Robots Rewired . | . . . . Allies Hacked . | . . . . Hacks Repelled . | . . . . Allies | -11 -10 -10 -10 -------- Run | Yrd Mat Min Exi Total Allies . | . . . . Largest Group . | . . . . Highest-Rated Group . | . . . . Highest-Rated Ally . | . . . . Total Orders . | . . . . Ally Attacks . | . . . . Total Damage . | . . . . Kills . | . . . . Allies Corrupted . | . . . . Allies Melted . | . . . . Intel | -11 -10 -10 -10 ------- Run | Yrd Mat Min Exi Active Infowar (turns) . | . . . . Robot Analysis Total . | . . . . Derelict Logs Recovered 1 | . . 1 . Drone Launches . | . . . . Drone Recoveries . | . . . . Exploration | -11 -10 -10 -10 ------------- Run | Yrd Mat Min Exi Turns Passed 1451 | 83 271 428 669 Spaces Moved 756 | 60 119 222 355 Core 86 | 20 . . 66 Treads 670 | 40 119 222 289 Legs . | . . . . Wheels . | . . . . Hover . | . . . . Flight . | . . . . Fastest Speed 50 | 50 160 160 50 Average Speed 148 | 123 160 160 142 Slowest Speed 200 | 160 160 160 200 Overloaded Moves . | . . . . Propulsion Burnouts . | . . . . Robots Hopped . | . . . . Potential Cave-ins . | . . . . Cave-ins Triggered . | . . . . Exploration Rate (%) 38 | 4 29 55 67 Regions Visited 3 Branch Regions 2 Pre-discovered Areas . | . . . . Known Exits Taken . | . . . . Unknown Exits Taken 3 | 1 1 1 . Scrap Searched . | . . . . Spaces Dug . | . . . . Terrain Destroyed . | . . . . Melee . | . . . . Projectile . | . . . . AOE . | . . . . Terrain Rammed . | . . . . Walls Destroyed . | . . . . Machines Disabled . | . . . . Actions | -11 -10 -10 -10 --------- Run | Yrd Mat Min Exi Total 987 | 69 155 257 506 Wait 145 | . 10 10 125 Move 753 | 59 118 221 355 Hop . | . . . . Pick Up 12 | 5 2 2 3 Fast Attach . | . . . . Attach 11 | 5 . 2 4 Detach 3 | . . . 3 Swap 1 | . . . 1 Drop . | . . . . Fire 61 | . 25 21 15 Melee . | . . . . Ram . | . . . . Kick . | . . . . Crush 1 | . . 1 . Escape Stasis . | . . . . Rewire . | . . . . Trap . | . . . . Miscellaneous . | . . . . Route ------- -11/Scrapyard -10/Materials -10/Mines (discovered 3 exits: [*Mat] / *Exi / [*Sub]) -10/Exiles History --------- Turn | Location | Event 14 | -11/Scrapyard | Discovered new exit (range 15) 84 | -11/Scrapyard | Entered Materials 313 | -10/Materials | Build established: Mutant 341 | -10/Materials | Discovered new exit (range 8) 355 | -10/Materials | Entered Mines 431 | -10/Mines | Discovered new exit (range 11) 570 | -10/Mines | Discovered new exit (range 5) 756 | -10/Mines | Learned Materials terminal intel 774 | -10/Mines | Deemed a non-threat by the Exiles lab entrance 775 | -10/Mines | Discovered new exit (range 5) 783 | -10/Mines | Entered Exiles 822 | -10/Exiles | Met 8R-AWN 851 | -10/Exiles | Met EX-HEX 908 | -10/Exiles | Met EX-DEC 947 | -10/Exiles | Met EX-BIN 969 | -10/Exiles | Aligned with FarCom system 971 | -10/Exiles | Given EX-Vault access code 1011 | -10/Exiles | Opened EX-Vault 1019 | -10/Exiles | Found Gui. Plasma Cannon 1023 | -10/Exiles | Found Supersonic Drone Bay 1027 | -10/Exiles | Found 0b10 Alert Chip 1061 | -10/Exiles | Warned to stay clear of 0b10 Research branches 1080 | -10/Exiles | Exiles lab attacked by MAIN.C 1247 | -10/Exiles | Attacked by the Exiles 1271 | -10/Exiles | Core integrity fell below 50% 1281 | -10/Exiles | Core integrity fell below 20% 1311 | -10/Exiles | Lost 5 parts (1p2n1u1w) 1452 | -10/Exiles | Destroyed by H-55 Commando with Gauss Rifle Last Messages --------------- KFQ:QT#KPFGRMM19YROJ>%KEQIF%VQ0BJL5KAI HV Slug penetrates L-31 Rogue. L-31 Rogue suffers critical hit (Destroy). HV Slug penetrates Machine. HV Slug penetrates Wall. HV Slug penetrates Machine. HV Slug penetrates G-34 Mercenary. G-34 Mercenary suffers critical hit (Destroy). G-34 Mercenary destroyed. Slug penetrates Wall. B-36 Bruiser destroyed. Slug penetrates 8R-AWN. HV Slug penetrates H-55 Commando. H-55 Commando suffers critical hit (Destroy). HV Slug penetrates H-55 Commando. Slug penetrates 8R-AWN. B-36 Bruiser destroyed. 5UKUCUAE:CW| F|>D#UQIEGR0JB%9CQ7OBAW Slug penetrates Machine. Machine disabled. Map ----- +----------------------------------------------------+ | ?????????????????????????????????????????????????? | | ?????????????????????????????????????????????????? | | ?????????????????????????????????????????????????? | | ?????????????????????????????????????????????????? | | ?????????????????????????????????????????????????? | | ?????????????????????????????????????????????????? | | ?????????????????????????????????????????????????? | | ?????????????????????????????????????????????????? | | ?????????????????????????????????????????????????? | | ?????????????????????????????????????????????????? | | ?????????????????????????????#######?????????????? | | ?????????????? ######???????#!!! "#?????????????? | | ?????????????? #""#??????# "#?????????????? | | ?????????????? ??????# "#?????????????? | | ?????????????" #????## ""#??????????#### | | ?????????????" #####" ""#??????????# | | ??????????????# ##" ""#??????????#"" | | ???????????????# #"" #????????????#"" | | ??????????????????# #????????????#"" | | ???????????????????### ##???????????#"" | | ?????????????????????### "#???????????# | | ???????????????########" ###?????????#"" | | ???????????????# !!""""" h ##????????### | | ???????????????#! ###" ######???### | | ???????????????#! "#?##" "" ##### # | | ???????????????#! @##??#" !!! | | ???????????????# !""""""###???#"# % | | ???????????????#########??????#### | | ?????????????????????????????????### | | ???????????????????????????????????##" = | | ????????????????????????????????????##" | | ?????????????????????????????????????### | | ???????????????????????????????????????##" | | ????????????????????????????????????????#"" | | ???????????????????????????????????????##" | | ???????????????????????????????????????#"" | | ???????????????????????????????????????#"" % | | ??????????????????????????????????????#""" | | ??????????????????????????????????????#""" | | ??????????????????????????????????????#"" | | ???????????????????????????????????????""" | | ???????????????????????????????????????"" | | ???????????????????????????????????????#"" | | ???????????????????????????????????????#"""" | | ????????????????????????????????????????# | | ?????????????????????????????????????????" | | ?????????????????????????????????????????"""" | | ?????????????????????????????????????????"" | | ?????????????????????????????????????????? | | ??????????????????????????????????????????"" | +----------------------------------------------------+ Best States ------------- Heat Dissipation 39 Energy Generation 14 Energy Capacity 160 Matter Stores 274 Matter Capacity 300 Sight Range 16 Terrain Scan Density 10 Evasion (%) 50 Recoil Reduction 2 Item Schematics ----------------- None Robot Schematics ------------------ None Fabricated ------------ Nothing Repaired ---------- Nothing Studied --------- None Alien Tech Used ----------------- None Achievements -------------- None Challenges ------------ None Game ------ Seed TimingScrapSpecial Manual? 0 Play Time 00:09:10 Cumulative 369.8 hours Start 2026.07.10 @ 15:02:29 End 2026.07.10 @ 15:09:47 Sessions 1 Manual Loads 0 Difficulty Rogue Special Mode None Game No. 910 Rogue 908 Adventurer 2 Explorer 0 Win Type - Total 1 Types 1/0/0/0/0/0/0/0/0/0 Lore% 54 Gallery% 68 Achievement% 53 Wizard Run 0 Options --------- Layout 2 ASCII 0 Keyboard 0 Movement Mouse Keybinds 0 Fullscreen 1 Font 24/Smallcaps Map View 50x44 Zoom Use 0% Tactical HUD 0 Map Filters NONE Filters NONE Steam X RUN: b86700bb-a274-4b7a-a0a5-3813d6a2f310